[Event "3rd Sunway Formentera-A 2024"]
[Site "Formentera"]
[Date "2024.04.11"]
[Round "3.7"]
[White "Prado, Alexandra"]
[Black "Krzywda, Andrzej"]
[Result "1/2-1/2"]
[ECO "C43"]
[WhiteElo "1839"]
[BlackElo "2214"]
[Annotator "TA"]
[PlyCount "46"]
[EventDate "2024.04.03"]
[EventType "swiss"]
[EventCountry "ESP"]
[SourceTitle "playchess.com"]
[Source "ChessBase"]
[SourceQuality "1"]
[TimeControl "40/5400+30:1800+30"]

{[%evp 16,46,0,0,0,0,-5,-14,0,-2,0,-10,0,0,115,114,129,130,158,159,166,155,288,170,189,139,248,249,247,254,359,330,317]} 1. e4 {[%emt 0:00:53]} e5 {[%emt 0:00:05]} 2. Nf3 {[%emt 0:00:10]} Nf6 {[%emt 0:00:06]} 3. d4 {[%emt 0:01:23]} Nxe4 {[%emt 0:00:16]} 4. Bd3 {[%emt 0:05:58]} d5 {[%emt 0:00:13]} 5. Nxe5 {[%emt 0:04:01]} Bd6 {[%emt 0:00:10]} 6. O-O {[%emt 0:07:45]} O-O {[%emt 0:00:07]} 7. c4 {[%emt 0:00:57]} Bxe5 {[%emt 0:00:42]} 8. dxe5 {[%emt 0:06:56]} Nc6 {[%emt 0:00:12]} 9. f4 {[%emt 0:12:04]} Bf5 {[%emt 0:13:04]} 10. Bxe4 {[%emt 0:10:24]} dxe4 {[%emt 0:01:01]} 11. Nc3 {[%emt 0:08:03]} Nb4 {[%emt 0:09:13] The position is equal.} 12. Be3 {[%emt 0:07:23]} Re8 {[%emt 0:07:10]} 13. a3 {[%emt 0:09:19]} Qxd1 {[%emt 0:11:45]} (13... Nd3 {seems wilder.} 14. Qe2 Qh4 15. Nd5 Bg4) 14. Raxd1 {[%emt 0:00:22]} Nc2 {[%emt 0:01:14]} (14... Nd3 $11) 15. Kf2 $16 {[%emt 0:01:36]} Be6 {[%emt 0:17:38]} 16. b3 {[%emt 0:01:49]} (16. Nxe4 Bxc4 17. Rg1 Nxe3 18. Kxe3 Bb5 $16) 16... a6 {[%emt 0:09:40]} 17. Rd2 {[%emt 0:04:50]} Nxe3 {[%emt 0:01:42]} 18. Kxe3 {[%emt 0:00:02][%cal Of4f5] [#] And now f5! would win.} b5 {[%emt 0:01:48] Black is weak on the dark squares} (18... Rad8 $16 19. Rxd8 (19. Nxe4 Rxd2 20. Kxd2 Bf5 $16) 19... Rxd8) 19. Nxe4 {[%emt 0:01:38]} (19. cxb5 axb5 20. a4 (20. Kxe4 c6 $15) (20. Nxe4 Rxa3 21. Rd3 Rxb3 $11) (20. Nxb5 Reb8 $14) 20... Bxb3 $14) (19. f5 $142 Bc8 20. Nd5 (20. Kxe4 bxc4 21. bxc4 Kf8 $18) (20. cxb5 axb5 21. Nd5 Rxa3 $14)) 19... bxc4 {[%emt 0:02:54]} 20. bxc4 {[%emt 0:02:49]} (20. f5 $18 Bc8 21. bxc4) 20... f6 {[%emt 0:00:13] [#]} (20... Rad8 $16 21. Rd4 h5) 21. f5 $1 $18 {[%emt 0:02:42]} (21. exf6 $2 {perishes.} Bf5 22. fxg7 Rxe4+ 23. Kf3 Rae8 $19 (23... Kxg7 24. g4 $11) (23... Rxc4 $2 24. Re1 $19)) 21... Bxc4 {[%emt 0:01:11]} 22. Rc1 {[%emt 0:10:26]} Bb5 {[%emt 0:21:06]} (22... Bf7 $142) 23. e6 {[%emt 0:00:30]} ({Worse is} 23. Rxc7 Rxe5 24. Kf4 Rae8 $11) 23... Rac8 {[%emt 0:00:30][%mdl 32768] White took control after the opening.   Weighted Error Value: White=0.15 (very precise) /Black=0.48.  Mistake:       	White=2     	Black=4      OK:         	White=4     	Black=2      Best:        	White=2     	---        Strong:       	White=1     	---       . An unexpected result.} 1/2-1/2

[Event "3rd Sunway Formentera-A 2024"]
[Site "Formentera"]
[Date "2024.04.11"]
[Round "3.8"]
[White "Kazarian, Anna-Maja"]
[Black "Schulman, Julia"]
[Result "1-0"]
[ECO "B75"]
[WhiteElo "2207"]
[BlackElo "1732"]
[Annotator "TA"]
[PlyCount "57"]
[EventDate "2024.04.03"]
[EventType "swiss"]
[EventCountry "ESP"]
[SourceTitle "playchess.com"]
[Source "ChessBase"]
[SourceQuality "1"]
[TimeControl "40/5400+30:1800+30"]

{[%evp 14,57,54,42,46,62,61,50,89,63,50,48,50,49,46,46,45,51,66,64,133,147,152,121,174,187,154,131,291,153,300,304,538,547,757,744,1704,1681,29978,4726,29986,29984,29982,1725,29982,4868]} 1. e4 {[%emt 0:00:03]} c5 {[%emt 0:00:08]} 2. Nf3 {[%emt 0:00:05]} d6 {[%emt 0:00:12]} 3. d4 {[%emt 0:00:04]} cxd4 {[%emt 0:00:08]} 4. Nxd4 {[%emt 0:00:05]} Nf6 {[%emt 0:00:11]} 5. Nc3 {[%emt 0:00:04]} g6 {[%emt 0:00:33]} 6. Be3 {[%emt 0:00:25]} Bg7 {[%emt 0:01:01]} 7. f3 {[%emt 0:00:07]} a6 {[%emt 0:00:26]} 8. Qd2 {[%emt 0:00:30]} h5 $1 {[%emt 0:00:40]} 9. Bc4 {[%emt 0:01:05]} b5 {[%emt 0:03:46]} 10. Bb3 {[%emt 0:00:44]} Bb7 {[%emt 0:02:35] [#] White is slightly better.} 11. a4 $1 {[%emt 0:05:41]} b4 {[%emt 0:01:40]} 12. Na2 {[%emt 0:01:30]} a5 {[%emt 0:00:51]} 13. c3 {[%emt 0:03:23]} bxc3 {[%emt 0:02:42]} 14. Nxc3 {[%emt 0:00:10]} Nbd7 {[%emt 0:02:26]} 15. Ndb5 {[%emt 0:04:30]} Ne5 {[%emt 0:07:55]} 16. O-O {[%emt 0:04:36]} h4 {[%emt 0:05:48]} (16... O-O $14) 17. h3 $16 {[%emt 1:15:58]} Rh5 {[%emt 0:19:13]} 18. Rad1 {[%emt 0:00:00] White has more active pieces.} Rc8 {[%emt 0:05:32]} (18... Ned7 $16 {was necessary.} 19. Bc4 Rc8) 19. f4 $18 {[%emt 0:00:00][%cal Bf3f4,Bf4f5,Bf5g6][%mdl 32]} Ned7 {[%emt 0:09:43]} 20. Bc2 {[%emt 0:00:00]} Nb6 $2 {[%emt 0:09:41] Loses the game.} (20... Rc4 $16) 21. b3 {[%emt 0:00:00]} ({Better is} 21. Qe2 $18) 21... Nfd7 {[%emt 0:04:30]} (21... Nbd7 $16 {might work better.} 22. Bd4 Kf8) 22. e5 {[%emt 0:00:00]} dxe5 $2 {[%emt 0:21:49]} (22... Kf8 23. Be4 (23. exd6 e6 $16) 23... Ba8) 23. f5 {[%emt 0:00:00]} f6 {[%emt 0:00:00]} 24. fxg6 {[%emt 0:00:00]} Rb8 {[%emt 0:00:00]} 25. Qe2 {[%emt 0:00:00]} Rh8 {[%emt 0:00:00]} 26. Qg4 {[%emt 0:00:00] [#] Threatening mate with Qe6.} Qc8 {[%emt 0:00:00]} 27. Qe6 {[%emt 0:00:00]} Qc6 {[%emt 0:00:00]} 28. Qf7+ {[%emt 0:00:00]} Kd8 {[%emt 0:00:00]} 29. Be4 {[%emt 0:00:00] Weighted Error Value: White=0.14 (very precise) /Black=0.92.  Mistake:       	White=1     	Black=5      Inaccurate:     	---       	Black=2      OK:         	White=8     	Black=3      Best:        	White=1     	Black=2      Strong:       	White=1     	---} (29. Qxg7 $2 Qxg2#) 1-0

[Event "3rd Sunway Formentera-A 2024"]
[Site "Formentera"]
[Date "2024.04.11"]
[Round "3.9"]
[White "Anishka Vikram"]
[Black "Botez, Alexandra"]
[Result "1-0"]
[ECO "E94"]
[WhiteElo "2036"]
[BlackElo "1970"]
[Annotator "TA"]
[PlyCount "83"]
[EventDate "2024.04.03"]
[EventType "swiss"]
[EventCountry "ESP"]
[SourceTitle "playchess.com"]
[Source "ChessBase"]
[SourceQuality "1"]
[TimeControl "40/5400+30:1800+30"]

{[%evp 24,83,40,16,22,17,16,10,25,31,46,46,65,81,103,95,118,106,131,112,293,293,373,362,395,407,489,474,459,419,602,641,729,729,979,960,979,972,979,988,1118,1121,1343,1280,1468,1439,1327,1219,1195,1200,1165,1144,1071,809,1132,804,2752,1654,2302,2110,29987,5560]} 1. d4 {[%emt 0:00:08]} Nf6 {[%emt 0:00:18]} 2. c4 {[%emt 0:00:16]} g6 {[%emt 0:00:05]} 3. Nc3 {[%emt 0:00:19]} Bg7 {[%emt 0:00:11]} 4. e4 {[%emt 0:00:15]} d6 {[%emt 0:00:07]} 5. Nf3 {[%emt 0:00:26]} O-O {[%emt 0:00:16]} 6. Be2 {[%emt 0:00:09]} Na6 {[%emt 0:00:11]} 7. O-O {[%emt 0:00:26]} e5 {[%emt 0:00:07]} 8. d5 {[%emt 0:00:12]} Nc5 {[%emt 0:00:07]} 9. Qc2 {[%emt 0:00:13]} a5 {[%emt 0:00:11]} 10. Bg5 {[%emt 0:00:16]} h6 {[%emt 0:00:24]} 11. Be3 {[%emt 0:00:13]} b6 {[%emt 0:00:11]} 12. Nd2 {[%emt 0:00:30]} Bg4 {[%emt 0:00:49]} 13. f3 {[%emt 0:00:48]} Bd7 {[%emt 0:00:06]} 14. Rfb1 {[%emt 0:04:43]} Nh5 {[%emt 0:01:40]} 15. b3 {[%emt 0:10:51]} Nf4 {[%emt 0:03:07] The position is equal.} 16. Bf1 {[%emt 0:01:08]} Qg5 {[%emt 0:02:16] [#] Threatens to win with ...Nh3+.} 17. Kh1 $1 {[%emt 0:05:29]} Qh5 {[%emt 0:04:27]} 18. a3 {[%emt 0:07:42]} f5 {[%emt 0:08:11]} 19. b4 {[%emt 0:02:27]} Na6 {[%emt 0:01:00]} 20. bxa5 {[%emt 0:20:03]} (20. c5 axb4 21. Na2 (21. axb4 Nxb4 22. Qb3 bxc5 $19) 21... Nxc5 (21... bxa3 22. cxb6 cxb6 23. Rxb6 $16) 22. axb4 fxe4 23. fxe4 (23. bxc5 exf3 24. gxf3 Bf5 $15) 23... Na6 $11) 20... bxa5 {[%emt 0:01:50]} 21. c5 {[%emt 0:01:37]} g5 $2 {[%emt 0:02:16]} (21... Nxc5 $16 22. Bxc5 dxc5) 22. cxd6 $18 {[%emt 0:04:55]} fxe4 {[%emt 0:39:45]} 23. Ndxe4 {[%emt 0:18:45]} cxd6 {[%emt 0:01:24]} 24. Nxd6 {[%emt 0:07:01]} e4 {[%emt 0:01:53]} 25. Ndxe4 {[%emt 0:02:52]} (25. fxe4 Nxg2 26. Qxg2 (26. Bxg2 Be5 $16) 26... Bxc3 $18) 25... Be5 {[%emt 0:04:38]} 26. Bg1 {[%emt 0:08:44]} Rfc8 {[%emt 0:10:49]} (26... Nc7 $142 27. Rb7 Bc8) 27. Qd2 {[%emt 0:03:32]} Nh3 {[%emt 0:13:48]} 28. gxh3 {[%emt 0:00:00] [#] Bd4 is the strong threat.} Bxc3 {[%emt 0:00:43]} 29. Qxc3 {[%emt 0:00:00]} Rxc3 {[%emt 0:00:22]} 30. Nf6+ {[%emt 0:00:00][%cal Be4f6,Bf6h5,Bh5g3][%mdl 32]} Kf7 {[%emt 0:00:06]} 31. Nxh5 {[%emt 0:00:00]} Kg6 {[%emt 0:00:18]} 32. Ng3 {[%emt 0:00:01]} Rxf3 {[%emt 0:00:59]} 33. Rb6+ {[%emt 0:01:18]} Rf6 {[%emt 0:00:05]} 34. Bd3+ {[%emt 0:00:14]} Kf7 {[%emt 0:00:15][%cal Bg6f7,Bf7f6,Bf6e7,Be7d6,Bd6c5,Bc5b6,Bb6b7][%mdl 32]} 35. Rxf6+ {[%emt 0:01:10]} Kxf6 {[%emt 0:00:05]} 36. Bd4+ {[%emt 0:00:22]} Ke7 {[%emt 0:00:14]} 37. Re1+ {[%emt 0:00:16]} Kd6 {[%emt 0:00:06]} 38. Be5+ {[%emt 0:00:38]} Kc5 {[%emt 0:00:11]} 39. Rc1+ {[%emt 0:00:21]} Kb6 {[%emt 0:00:07]} 40. Bd4+ {[%emt 0:00:00]} Kb7 {[%emt 0:00:00]} 41. Ne4 {[%emt 0:02:25]} Nc7 {[%emt 0:00:27]} 42. Nd6+ {[%emt 0:00:23] Black did not feel at home in the position after the opening.   Weighted Error Value: White=0.08 (flawless) /Black=0.58.  Loses game:     	---       	Black=1      Mistake:       	---       	Black=1      OK:         	White=7     	Black=1      Best:        	White=1     	---        Strong:       	White=1     	---} (42. Rb1+ $142 Bb5 43. Nd6+ (43. Bxb5 Nxd5 44. Nc5+ Kc7 $18) (43. Rxb5+ Nxb5 44. Bxb5 Rg8 $18) 43... Kb8 44. Nxb5 Nxd5 45. Be4 Kc8 46. Bxd5 Ra6 47. Rf1 (47. Rc1+ Kd8 $18)) 1-0

[Event "3rd Sunway Formentera-A 2024"]
[Site "Formentera"]
[Date "2024.04.11"]
[Round "3.10"]
[White "Zhu, Hengyi"]
[Black "Sosa, Tomas"]
[Result "1/2-1/2"]
[ECO "C88"]
[WhiteElo "2282"]
[BlackElo "2562"]
[Annotator "TA"]
[PlyCount "109"]
[EventDate "2024.04.03"]
[EventType "swiss"]
[EventCountry "ESP"]
[SourceTitle "playchess.com"]
[Source "ChessBase"]
[SourceQuality "1"]
[TimeControl "40/5400+30:1800+30"]

{[%evp 14,109,37,11,50,41,51,53,43,44,41,15,12,0,0,-7,0,0,0,0,0,0,0,-35,0,-14,0,0,9,0,0,-10,29,0,67,54,55,40,118,105,141,0,0,0,0,0,0,0,-2,-27,-29,-40,0,0,0,0,0,6,6,0,95,79,82,72,161,0,0,0,0,0,0,0,0,0,0,0,0,0,0,0,0,0,0,10,0,0,0,0,0,0,0,0,0,0,0,0,0,0]} 1. e4 {[%emt 0:00:03]} e5 {[%emt 0:01:55]} 2. Nf3 {[%emt 0:00:31]} Nc6 {[%emt 0:00:08]} 3. Bb5 {[%emt 0:00:10]} a6 {[%emt 0:00:32]} 4. Ba4 {[%emt 0:00:37]} Nf6 {[%emt 0:00:22]} 5. O-O {[%emt 0:00:15]} Be7 {[%emt 0:00:17]} 6. Re1 {[%emt 0:00:44]} b5 {[%emt 0:00:06]} 7. Bb3 {[%emt 0:00:07]} O-O {[%emt 0:00:07]} 8. a4 {[%emt 0:06:00][%cal Ba2a4,Ba4b5][%mdl 32] Black must now prevent axb5.} Na5 {[%emt 0:00:29]} 9. axb5 {[%emt 0:07:09]} Nxb3 {[%emt 0:00:29]} 10. cxb3 {[%emt 0:00:09]} Bb7 {[%emt 0:00:11] White is slightly better.} 11. bxa6 {[%emt 0:08:13]} Bxe4 {[%emt 0:00:10]} 12. Nxe5 {[%emt 0:00:21]} Bxb1 {[%emt 0:00:51]} 13. Rxb1 {[%emt 0:00:09]} (13. d3 {feels hotter.} Nd5 14. Be3 Bb4 15. Bd2) 13... Rxa6 {[%emt 0:00:03]} 14. d3 {[%emt 0:02:02]} Re6 {[%emt 0:00:24]} 15. Nf3 {[%emt 0:08:18]} Nd5 {[%emt 0:11:35]} 16. Bd2 {[%emt 0:02:28]} Qb8 {[%emt 0:03:33]} 17. Re4 {[%emt 0:04:00]} Bf6 {[%emt 0:04:22]} 18. Qc2 {[%emt 0:07:43]} Qb7 {[%emt 0:05:10][%mdl 1024] Black has compensation.} 19. Ra1 {[%emt 0:08:33]} h6 {[%emt 0:06:23]} 20. h3 {[%emt 0:01:22]} Rb8 {[%emt 0:01:11]} 21. Ra5 {[%emt 0:07:44]} c6 {[%emt 0:07:54]} 22. b4 {[%emt 0:00:38]} Be7 {[%emt 0:11:32][%cal Re7b4]} 23. Nd4 {[%emt 0:03:10]} Nxb4 {[%emt 0:04:29]} (23... Bxb4 $1 $11 24. Nxe6 Bxa5) 24. Qb3 $14 {[%emt 0:01:42]} Rxe4 {[%emt 0:03:18]} 25. dxe4 {[%emt 0:01:00] Threatens to win with Qg3.} Bf6 {[%emt 0:14:18]} (25... Qc7 $1 $14 26. Rf5 Nd5) 26. Nf5 $16 {[%emt 0:02:47] White has more active pieces.} Qc7 {[%emt 0:02:08] [#] Prevents Nd6.} 27. Qa4 {[%emt 0:06:09]} (27. Bxb4 $2 Qxa5 28. Nxh6+ Kh7 29. Bxa5 Rxb3 30. Nxf7 Rxb2 $19 (30... Kg8 $2 31. Nd6 $19)) (27. Qa3 $1 $16 c5 28. Bc3) 27... Nd3 $11 {[%emt 0:01:26]} 28. Qc2 {[%emt 0:09:26]} Nf4 $36 {[%emt 0:16:40][%cal Bd3f4,Bf4e2,Be2d4,Bd4e6,Be6g5][%mdl 2080] White is under pressure.} 29. b4 {[%emt 0:05:46]} Ne2+ {[%emt 0:01:58]} 30. Kh1 {[%emt 0:00:19]} Qb6 {[%emt 0:00:38]} 31. Rc5 {[%emt 0:01:05]} Nd4 {[%emt 0:00:20]} 32. Qd3 {[%emt 0:00:40]} Ne6 {[%emt 0:00:37]} 33. Rc1 {[%emt 0:00:01]} Qc7 {[%emt 0:01:38]} (33... Qxf2 $2 34. Rf1 Qb6 35. Nxh6+ (35. Qxd7 $2 Rd8 $19) 35... Kh8 36. Nxf7+ Kg8 37. Nh6+ (37. Qxd7 Nf8 $18) 37... Kh8 38. e5 $18 (38. Qxd7 Qa6 $18)) (33... Qb5 $5 34. Qg3 (34. Qxd7 $2 Rd8 $19) 34... h5 $11) 34. Qf3 {[%emt 0:02:22][%cal Of5h6]} Bg5 {[%emt 0:00:24]} 35. Bxg5 {[%emt 0:00:17]} Nxg5 {[%emt 0:00:28]} 36. Qg4 {[%emt 0:01:11]} Qe5 {[%emt 0:01:40]} (36... Rxb4 37. Ne7+ Kf8 38. Nd5 Nxe4 (38... cxd5 $2 39. Rxc7 Ne6 40. Rxd7 $18) 39. Qxe4 (39. Nxc7 Nxf2+ 40. Kg1 Nxg4 $17) (39. Qh4 Ng3+ 40. fxg3 Rxh4 $16) 39... Rxe4 40. Nxc7 $16) (36... Kf8 $11 {remains equal.}) 37. f4 $16 {[%emt 0:00:46]} Qb2 {[%emt 0:00:01] [#]} 38. Re1 {[%emt 0:00:42]} Qxb4 {[%emt 0:00:48]} (38... Ne6 $16) 39. Re3 $2 {[%emt 0:00:01]} ({Only move:} 39. Rd1 $18 Ne6 40. Nxh6+ (40. Rxd7 Qe1+ 41. Kh2 Rb1 $11) 40... Kf8 41. Qf5 (41. f5 gxh6 42. fxe6 dxe6 $14)) 39... Ne6 $11 {[%emt 0:00:24] And now ...Qd2 would win. The position is equal.} 40. Nxh6+ {[%emt 0:00:00]} Kf8 {[%emt 0:00:00]} 41. Nf5 {[%emt 0:07:50]} g6 {[%emt 0:07:48]} 42. Qh4 {[%emt 0:06:46][%cal Rh4h8]} gxf5 {[%emt 0:13:22]} 43. exf5 {[%emt 0:00:14]} Qd4 $1 {[%emt 0:02:44]} (43... Nxf4 44. Qh8#) 44. Re1 {[%emt 0:02:15] Dodges Rb1} Ke8 {[%emt 0:04:35]} 45. fxe6 {[%emt 0:01:14]} fxe6 {[%emt 0:00:01][%mdl 4096] Endgame. KQR-KQR} 46. Qg5 {[%emt 0:00:36] Qg8+ would now be deadly.} Rb5 {[%emt 0:03:02]} 47. f5 {[%emt 0:11:47] Strongly threatening Qg8+.} Qf2 {[%emt 0:00:08][%csl LRe1,LRf5]} 48. Qg8+ {[%emt 0:02:19]} Ke7 {[%emt 0:00:00]} 49. Qg7+ {[%emt 0:00:06]} Kd8 {[%emt 0:00:46]} 50. Rd1 {[%emt 0:00:02]} Rd5 {[%emt 0:01:08]} 51. Qg5+ {[%emt 0:00:10]} Kc8 {[%emt 0:00:25]} 52. Rxd5 {[%emt 0:00:05]} cxd5 {[%emt 0:00:22]} 53. f6 {[%emt 0:00:09]} d4 {[%emt 0:00:56]} 54. Qg8+ {[%emt 0:05:12]} Kb7 $1 {[%emt 0:00:06]} 55. f7 {[%emt 0:04:35] Weighted Error Value: White=0.11 (very precise) /Black=0.13 (very precise) .  Missed win:     	White=1     	---        Mistake:       	White=1     	Black=4      Inaccurate:     	White=3     	Black=3      OK:         	White=16    	Black=27     Best:        	White=5     	---        Strong:       	---       	Black=2} 1/2-1/2

[Event "3rd Sunway Formentera-A 2024"]
[Site "Formentera"]
[Date "2024.04.11"]
[Round "3.11"]
[White "Tsatsalashvili, Keti"]
[Black "Maisuradze, Nino"]
[Result "1-0"]
[ECO "D40"]
[WhiteElo "2315"]
[BlackElo "2191"]
[Annotator "TA RC"]
[PlyCount "127"]
[EventDate "2024.04.03"]
[EventType "swiss"]
[EventCountry "ESP"]
[SourceTitle "playchess.com"]
[Source "ChessBase"]
[SourceQuality "1"]
[TimeControl "40/5400+30:1800+30"]

{[%evp 23,127,17,23,8,22,-9,33,39,33,31,22,9,12,10,31,10,12,0,0,0,0,0,0,0,0,0,0,-14,-9,-7,-7,-10,5,15,36,10,9,0,0,0,0,0,0,0,0,0,0,0,0,0,0,0,0,0,0,-6,43,20,43,22,66,26,70,29,36,21,55,14,110,25,13,0,0,0,128,100,194,8,237,234,245,158,861,736,2547,2348,4762,4718,4570,1196,1230,1352,4570,4570,29969,29970,29970,29969,29986,29984,29984,29985,29989,29990,29992,29990]} 1. d4 {[%emt 0:00:04]} Nf6 {[%emt 0:00:04]} 2. c4 {[%emt 0:00:07]} e6 {[%emt 0:00:39]} 3. Nf3 {[%emt 0:00:35]} c5 {[%emt 0:00:09]} 4. e3 {[%emt 0:01:24]} d5 {[%emt 0:01:36]} 5. Nc3 {[%emt 0:00:27]} Nc6 {[%emt 0:00:44]} 6. a3 {[%emt 0:00:09]} dxc4 {[%emt 0:14:25]} 7. Bxc4 {[%emt 0:00:17]} Be7 {[%emt 0:06:55]} 8. O-O {[%emt 0:01:36]} O-O {[%emt 0:00:50]} 9. dxc5 {[%emt 0:01:48]} Qxd1 {[%emt 0:02:11]} 10. Rxd1 {[%emt 0:00:07]} Bxc5 {[%emt 0:00:04]} 11. b4 {[%emt 0:00:26]} Be7 {[%emt 0:03:16]} 12. Bb2 {[%emt 0:00:47]} a6 {[%emt 0:14:26]} 13. e4 {[%emt 0:11:01]} Nd7 {[%emt 0:02:17]} 14. Rd2 {[%emt 0:09:17]} Nde5 {[%emt 0:05:21]} 15. Nxe5 {[%emt 0:01:59] White is slightly better.} Nxe5 {[%emt 0:00:03]} 16. Bb3 {[%emt 0:01:13]} Bg5 {[%emt 0:04:00]} 17. Rdd1 {[%emt 0:04:39]} Nc6 {[%emt 0:03:31]} 18. Na4 {[%emt 0:02:07]} b5 {[%emt 0:10:15]} 19. Nc5 {[%emt 0:01:38]} Rd8 {[%emt 0:04:51]} 20. g3 {[%emt 0:07:18]} a5 {[%emt 0:02:18]} 21. Bc3 {[%emt 0:13:23]} Rxd1+ {[%emt 0:12:49]} 22. Rxd1 {[%emt 0:00:25]} Be7 {[%emt 0:00:14]} 23. Rc1 {[%emt 0:14:54]} axb4 {[%emt 0:01:21]} 24. axb4 {[%emt 0:01:12]} Kf8 {[%emt 0:08:52]} 25. Bd2 {[%emt 0:08:46][%cal Oc5e6]} Nd4 {[%emt 0:00:33]} 26. Bd1 {[%emt 0:00:21] Prevents Nf3+} e5 {[%emt 0:00:54]} 27. Be3 {[%emt 0:01:17]} Ne6 {[%emt 0:00:43]} 28. Be2 {[%emt 0:03:01]} Rb8 {[%emt 0:00:11]} 29. Nd3 {[%emt 0:01:26]} f6 {[%emt 0:00:45]} 30. Bg4 {[%emt 0:02:01][%cal Oc1c8] Black must now prevent Rxc8+!} Kf7 {[%emt 0:00:24]} 31. Bd1 {[%emt 0:02:06]} Bb7 {[%emt 0:00:29]} 32. f3 {[%emt 0:00:48]} Rd8 {[%emt 0:00:14]} 33. Nc5 {[%emt 0:01:17]} Nxc5 {[%emt 0:00:41]} 34. bxc5 {[%emt 0:00:12]} Rd3 {[%emt 0:00:35]} 35. Kf2 {[%emt 0:00:44]} Bc6 {[%emt 0:00:09]} 36. Ke2 {[%emt 0:00:50]} Ra3 {[%emt 0:00:16]} 37. h4 {[%emt 0:03:56]} Ra2+ {[%emt 0:01:15]} 38. Bd2 {[%emt 0:00:32] And now Bb3+ would win.} Ke8 {[%emt 0:00:22]} 39. Bb3 {[%emt 0:00:54]} Ra6 {[%emt 0:00:41]} (39... Rb2 $11 40. Bg8 g6) 40. Bb4 {[%emt 0:00:00]} Ra8 {[%emt 0:00:00]} 41. Rd1 {[%emt 0:07:35]} h6 {[%emt 0:07:47]} 42. Ke3 {[%emt 0:01:31] White is more active.} Rd8 {[%emt 0:02:36]} 43. Bd5 {[%emt 0:02:06]} Rc8 {[%emt 0:01:10]} 44. Rc1 {[%emt 0:00:12]} Kd7 {[%emt 0:00:33]} 45. f4 {[%emt 0:00:16]} exf4+ {[%emt 0:03:18]} (45... Ra8 $11) 46. gxf4 {[%emt 0:00:09]} ({White should play} 46. Kxf4 $16 g6 47. Bf7 g5+ 48. Kf5) 46... f5 $11 {[%emt 0:02:48]} 47. Rd1 {[%emt 0:08:23]} fxe4 {[%emt 0:01:56]} 48. Bxe4+ {[%emt 0:00:20]} Ke6 {[%emt 0:01:07] [#]} (48... Kc7 $11 {remains equal.}) 49. Bg6 $1 $16 {[%emt 0:05:53] Intending f5+ and mate.} Bxh4 {[%emt 0:07:37] [#]} (49... Rf8 $16) 50. Rd6+ $1 $18 {[%emt 0:00:49]} Ke7 {[%emt 0:00:03]} 51. Bf5 {[%emt 0:00:47][%mdl 1024] White has strong compensation.} Rf8 {[%emt 0:00:39]} 52. Be6 {[%emt 0:01:58]} Be8 {[%emt 0:06:55] Loses the game.} ({Don't go for} 52... Rf6 $2 53. f5 (53. Rxc6 $2 Rxe6+ 54. Rxe6+ Kxe6 $19) 53... Bg5+ 54. Kd4 $18) (52... Bf2+ $16 53. Kxf2 Rxf4+ 54. Kg3 Rxb4) 53. f5 {[%emt 0:03:50] Threatens to win with c6.} Kf6 {[%emt 0:00:31]} 54. c6 {[%emt 0:04:01]} Bxc6 {[%emt 0:00:32]} 55. Rxc6 {[%emt 0:00:11]} Re8 {[%emt 0:00:22]} 56. Bc3+ {[%emt 0:00:17]} (56. Kf3 $142 Rd8 57. Bd5+ Kxf5 58. Be4+ Ke5 59. Bc3+ Rd4 60. Rc5+ (60. Bxd4+ Kxd4 61. Bc2 g5 $18) 60... Ke6 61. Bxd4) 56... Kg5 {[%emt 0:00:23]} 57. Bxg7 {[%emt 0:00:10] Rc2 is the strong threat.} Ra8 {[%emt 0:00:46]} 58. Bd4 {[%emt 0:00:58]} Ra3+ {[%emt 0:00:31]} 59. Ke4 {[%emt 0:00:11] White mates.} Ra4 {[%emt 0:00:17]} 60. Rc2 {[%emt 0:01:37]} Bg3 {[%emt 0:00:28]} 61. Rg2 {[%emt 0:00:36]} Kh4 {[%emt 0:00:10]} 62. f6 {[%emt 0:00:23]} Ra6 {[%emt 0:00:16]} 63. Kf5 {[%emt 0:00:32]} b4 {[%emt 0:01:18]} 64. Be5 {[%emt 0:00:46] Weighted Error Value: White=0.14 (very precise) /Black=0.33.  Loses game:     	---       	Black=2      Mistake:       	White=1     	Black=4      Inaccurate:     	White=6     	Black=5      OK:         	White=6     	Black=21     Best:        	White=1     	---        Strong:       	White=2     	---} 1-0